bitfinex-derivatives/quotes_ETHF0:USTF0_20250503
["timestamp","ask_amount","ask_price","bid_price","bid_amount"]
[1746239916360,11.32022,1833.5,1833.4,2.72695]
[1746239917761,10.2298,1833.5,1833.4,2.72695]
[1746239918754,7.7985,1833.5,1833.4,2.72695]
[1746239924157,6.9258,1833.5,1833.4,2.72695]
[1746239925863,3.718,1833.5,1833.4,2.72695]
[1746239931365,7.3534732,1833.5,1833.4,2.72695]
[1746239933760,9.7618732,1833.5,1833.4,2.72695]
[1746239933959,8.1747732,1833.5,1833.4,2.72695]
[1746239934161,7.3534732,1833.5,1833.4,2.72695]
[1746239934359,8.04878389,1833.5,1833.4,2.72695]
[1746239939178,4.33078389,1833.5,1833.4,2.72695]
[1746239940777,4.33078389,1833.5,1833.4,5.93475]
[1746239940972,6.0883732,1833.7,1833.6,1.09036]
[1746239941680,6.0883732,1833.7,1833.6,2.70386]
[1746239942177,9.8063732,1833.7,1833.6,2.70386]
[1746239949185,6.1709,1833.7,1833.6,2.70386]
[1746239950380,6.1709,1833.7,1833.6,1.09036]
[1746239953185,6.1709,1833.7,1833.6,2.80096]
[1746239953380,3.718,1833.7,1833.6,2.80096]
[1746239953587,3.718,1833.7,1833.6,3.66696]
[1746239953588,8.04872676,1833.7,1833.6,3.66696]
[1746239954075,4.33072676,1833.7,1833.6,3.66696]
[1746239955280,4.33072676,1833.7,1833.6,6.87476]
[1746239957889,1.6269,1833.8,1833.7,1.0903]
[1746239958086,1.6269,1833.8,1833.7,2.8267]
[1746239959986,1.6269,1833.8,1833.7,1.0903]
[1746239960192,8.5527,1833.8,1833.7,1.0903]
[1746239960385,9.64294,1833.8,1833.7,1.0903]
[1746239960792,1.0903,1833.7,1833.6,1.09032]
[1746239960993,2.4097,1833.7,1833.6,1.09032]
[1746239961194,11.1277,1833.7,1833.5,3.45]
[1746239961494,1.09042,1833.5,1833.4,1.09047]
[1746239961694,3.51461,1833.6,1833.4,1.09047]
[1746239961991,1.72,1833.5,1833.4,1.09047]
[1746239962193,5.438,1833.5,1833.4,1.09047]
[1746239965290,9.0734732,1833.5,1833.4,1.09047]
[1746239966897,10.1638932,1833.5,1833.4,1.09047]
[1746239967400,9.0734732,1833.5,1833.4,1.09047]
[1746239968197,10.1638932,1833.5,1833.4,1.09048]
[1746239968397,10.9720932,1833.5,1833.4,1.09048]
[1746239969200,11.66745259,1833.5,1833.4,1.09048]
[1746239972301,9.8816732,1833.5,1833.4,1.09048]
[1746239972796,1.09084,1832.8,1832.7,10.46507372]
[1746239972997,4.29864,1832.8,1832.7,0.23927372]
[1746239973301,8.01664,1832.8,1832.7,0.23927372]
[1746239974003,9.75224,1832.8,1832.7,0.23927372]
[1746239976304,3.718,1832.8,1832.7,0.23927372]
[1746239976500,3.718,1832.8,1832.7,12.97307372]
[1746239977202,1.6913,1833.1,1833.0,1.09072]
[1746239977604,2.78196,1833.1,1832.9,1.09075]
[1746239977805,10.05290641,1833.1,1833.0,1.6023]
[1746239982011,2.78196,1833.1,1833.0,1.6023]
[1746239982306,6.49996,1833.1,1833.0,1.6023]
[1746239983109,2.78196,1833.1,1833.0,1.6023]
[1746239989311,3.21669354,1833.1,1833.0,1.6023]
[1746239989615,3.21669354,1833.1,1833.0,2.69302]
[1746239992217,6.93469354,1833.1,1833.0,2.69302]
[1746239993119,3.21669354,1833.1,1833.0,2.69302]
[1746239994313,1.0908,1832.9,1832.8,1.09078]
[1746239994514,4.73333354,1832.9,1832.8,2.76838]
[1746239995022,5.52563354,1832.9,1832.8,1.6776]
[1746239995220,10.09023354,1832.9,1832.8,1.6776]
[1746239995820,10.09134929,1832.9,1832.8,2.76844]
[1746239996221,6.37334929,1832.9,1832.8,2.76844]
[1746239996622,3.16554929,1832.9,1832.8,2.76844]
[1746239996824,6.37334929,1832.9,1832.8,2.76844]
[1746239997626,6.37350782,1832.9,1832.8,2.76844]
[1746239998128,10.09150782,1832.9,1832.8,2.76844]
[1746239999136,10.09161706,1832.9,1832.8,2.76844]
[1746239999535,10.09173397,1832.9,1832.8,2.76844]
[1746240000330,6.37373397,1832.9,1832.8,2.76844]
[1746240001131,10.09189876,1832.9,1832.8,2.76844]
[1746240001737,7.36219876,1832.9,1832.8,2.76844]
[1746240001937,4.15439876,1832.9,1832.8,2.76844]
[1746240002139,0.43639876,1832.9,1832.8,2.76844]
[1746240004139,1.52717876,1832.9,1832.8,2.76844]
[1746240004342,0.43639876,1832.9,1832.8,2.76844]
[1746240004640,3.59327,1833.0,1832.8,2.76844]
[1746240004845,2.0666376,1832.9,1832.8,2.76844]
[1746240005440,3.1574176,1832.9,1832.8,2.76844]
[1746240005633,6.3652176,1832.9,1832.8,1.09084]
[1746240005833,5.2744376,1832.9,1832.8,1.09084]
[1746240006132,8.9924376,1832.9,1832.8,1.09084]
[1746240006435,8.5554,1832.9,1832.8,1.09084]
[1746240006641,8.99267827,1832.9,1832.8,1.09084]
[1746240007128,8.99267827,1832.9,1832.8,2.80934]
[1746240008341,5.27467827,1832.9,1832.8,2.80934]
[1746240008837,6.36545827,1832.9,1832.8,1.7185]
[1746240009541,6.36545827,1832.9,1832.8,1.09084]
[1746240009735,6.36550827,1832.9,1832.8,1.09084]
[1746240010141,10.08352295,1832.9,1832.8,1.09084]
[1746240011939,10.08347416,1832.9,1832.8,1.09084]
[1746240012144,13.7126962,1832.9,1832.8,1.09084]
[1746240013745,1.09084,1832.8,1832.7,2.79646]
[1746240013946,3.91828416,1832.8,1832.7,2.79646]
[1746240015646,3.91820029,1832.8,1832.7,2.79646]
[1746240016143,8.24304838,1832.8,1832.7,2.79646]
[1746240017550,8.24304838,1832.8,1832.7,1.09086]
[1746240017753,1.0909,1832.7,1832.6,4.54091]
[1746240017948,1.09096,1832.6,1832.5,3.55609]
[1746240018149,1.52812029,1832.6,1832.5,3.55609]
[1746240018344,3.17972029,1832.6,1832.5,3.55609]
[1746240019254,6.89766586,1832.6,1832.5,3.55609]
[1746240019751,5.80670586,1832.6,1832.5,3.55609]
[1746240020151,2.08870586,1832.6,1832.5,3.55609]
[1746240020654,8.22816497,1832.6,1832.5,3.55609]
[1746240020951,8.22807544,1832.6,1832.5,3.55609]
[1746240021251,6.57647544,1832.6,1832.5,3.55609]
[1746240023555,5.86742289,1832.6,1832.5,3.55609]
[1746240023743,5.86742289,1832.6,1832.5,2.75989]
[1746240023948,7.58262289,1832.6,1832.5,2.75989]
[1746240024155,11.30062289,1832.6,1832.5,2.75989]
[1746240026357,11.30053107,1832.6,1832.5,2.75989]
[1746240028855,10.20957107,1832.6,1832.3,4.3788]
[1746240029061,4.29888,1832.4,1832.3,6.37443]
[1746240029358,3.64472451,1832.4,1832.3,6.37443]
[1746240029546,5.25532451,1832.4,1832.3,6.37443]
[1746240029952,5.25531244,1832.4,1832.3,6.37443]
[1746240030156,5.25527774,1832.4,1832.3,6.37443]
[1746240031060,8.97327774,1832.4,1832.3,6.37443]
[1746240031255,8.97327774,1832.4,1832.3,2.84643]
[1746240031655,8.97319705,1832.4,1832.3,2.84643]
[1746240031959,5.76539705,1832.4,1832.3,2.84643]
[1746240032161,2.04739705,1832.4,1832.3,2.84643]
[1746240032551,0.43679705,1832.4,1832.3,2.84643]
[1746240035365,5.59184051,1832.5,1832.4,1.09108]
[1746240035664,6.02878951,1832.5,1832.4,2.73018]
[1746240037059,4.93776951,1832.5,1832.4,2.73018]
[1746240037264,4.93780539,1832.5,1832.4,2.73018]
[1746240038062,6.02882539,1832.5,1832.4,2.73018]
[1746240038864,4.50082051,1832.5,1832.4,2.73018]
[1746240039163,6.54109741,1832.5,1832.4,2.73018]
[1746240039354,1.09111,1832.4,1832.0,3.2078]
[1746240039559,0.8422,1832.4,1832.3,1.09113]
[1746240039756,1.27936605,1832.4,1832.3,1.09113]
[1746240040361,2.36545283,1832.4,1832.3,1.09113]
[1746240040562,1.27437283,1832.4,1832.3,1.09113]
[1746240041163,2.36545283,1832.4,1832.3,1.09113]
[1746240041773,1.27437283,1832.4,1832.3,1.09113]
[1746240041967,1.29742205,1832.4,1832.3,1.09113]
[1746240042168,0.46021527,1832.4,1832.3,1.09113]
[1746240042373,0.46021527,1832.4,1832.3,1.96573]
[1746240042576,5.59185051,1832.5,1832.4,1.09108]
[1746240042880,6.05206623,1832.5,1832.4,2.73998]
[1746240044278,7.85207878,1832.5,1832.4,2.73998]
[1746240044477,7.85217194,1832.5,1832.4,2.73998]
[1746240044678,11.05997194,1832.5,1832.4,2.73998]
[1746240046177,11.06002697,1832.5,1832.4,2.73998]
[1746240047178,14.77802697,1832.5,1832.4,2.73998]
[1746240048077,13.67202108,1832.5,1832.4,2.73998]
[1746240048275,9.95402108,1832.5,1832.4,2.73998]
[1746240049781,9.95404295,1832.5,1832.4,2.73998]
[1746240050074,9.95404295,1832.5,1832.4,1.6489]
[1746240050780,9.95404295,1832.5,1832.4,2.73998]
[1746240051074,11.75590846,1832.5,1832.4,2.73998]
[1746240051279,13.37460846,1832.5,1832.4,2.73998]
[1746240052080,17.09260846,1832.5,1832.4,2.73998]
[1746240053078,13.37460846,1832.5,1832.4,2.73998]
[1746240054083,10.16680846,1832.5,1832.4,2.73998]
[1746240055187,13.87574698,1832.5,1832.4,2.73998]
[1746240055484,17.08354698,1832.5,1832.4,2.73998]
[1746240056085,13.36554698,1832.5,1832.4,2.73998]
[1746240056687,10.15774698,1832.5,1832.4,2.73998]
[1746240056886,9.06671698,1832.5,1832.4,2.73998]
[1746240057081,15.99251698,1832.5,1832.4,2.73998]
[1746240057287,17.08353698,1832.5,1832.4,2.73998]
[1746240058190,13.36553698,1832.5,1832.4,2.73998]
[1746240058786,13.36569671,1832.5,1832.4,2.73998]
[1746240059187,12.27467671,1832.5,1832.4,2.73998]
[1746240059486,13.36569671,1832.5,1832.4,2.73998]
[1746240060189,17.08369671,1832.5,1832.4,2.73998]
[1746240060690,17.0836857,1832.5,1832.4,2.73998]
[1746240061186,13.3656857,1832.5,1832.4,2.73998]
[1746240062089,13.36568276,1832.5,1832.4,2.73998]
[1746240063793,12.27465843,1832.5,1832.4,2.73998]
[1746240063994,13.36567843,1832.5,1832.4,2.73998]
[1746240064296,12.27465843,1832.5,1832.4,2.73998]
[1746240064495,13.36567843,1832.5,1832.4,2.73998]
[1746240067001,13.36569974,1832.5,1832.4,2.73998]
[1746240067602,7.92186668,1832.5,1832.4,2.73998]
[1746240068298,6.83084668,1832.5,1832.4,2.73998]
[1746240068602,4.35514668,1832.5,1832.4,2.73998]
[1746240069102,4.35511537,1832.5,1832.4,4.42958]
[1746240071102,4.35496017,1832.5,1832.4,4.42958]
[1746240072707,4.35488686,1832.5,1832.4,4.42958]
[1746240073407,1.14708686,1832.5,1832.4,4.42958]
[1746240074312,4.79549219,1832.5,1832.4,4.42958]
[1746240075408,4.79534671,1832.5,1832.4,4.42958]
[1746240076414,4.79533877,1832.5,1832.4,4.42958]
[1746240078112,4.09958991,1832.5,1832.4,4.42958]
[1746240078310,4.09958991,1832.5,1832.4,3.55828]
[1746240078510,6.56198991,1832.5,1832.4,2.73998]
[1746240078810,6.56198991,1832.5,1832.4,1.09108]
[1746240079919,6.56198991,1832.5,1832.4,2.80508]
[1746240081725,8.38619258,1832.5,1832.4,2.80508]
[1746240084326,8.38619258,1832.5,1832.4,1.09108]
[1746240085122,9.08189805,1832.5,1832.4,1.09108]
[1746240085322,9.08202293,1832.5,1832.4,1.09108]
[1746240088635,7.25689483,1832.5,1832.4,1.09108]
[1746240090726,7.25699357,1832.5,1832.4,1.09108]
[1746240090921,4.79459357,1832.5,1832.4,6.09108]
[1746240091129,4.79459357,1832.5,1832.4,12.34498]
[1746240091528,4.79449595,1832.5,1832.4,12.34498]
[1746240092137,4.79449595,1832.5,1832.4,7.34498]
[1746240092334,4.34318537,1832.5,1832.4,7.34498]
[1746240092535,4.77610367,1832.5,1832.4,7.34498]
[1746240092728,6.60123177,1832.5,1832.4,7.34498]
[1746240092932,6.60118208,1832.5,1832.4,7.34498]
[1746240093134,6.60118208,1832.5,1832.4,3.62698]
[1746240094136,6.6011731,1832.5,1832.4,3.62698]
[1746240094938,6.6011731,1832.5,1832.4,2.83218]
[1746240095131,9.1273731,1832.5,1832.4,2.83218]
[1746240096337,2.95905963,1832.5,1832.4,2.83218]
[1746240098336,1.27155963,1832.5,1832.4,2.83218]
[1746240098537,3.64629125,1832.6,1832.5,1.09102]
[1746240098837,4.07916938,1832.6,1832.5,3.52582]
[1746240099536,4.89366938,1832.6,1832.5,3.52582]
[1746240101344,1.24727868,1832.6,1832.5,3.52582]
[1746240102240,1.24727868,1832.6,1832.5,2.67712]
[1746240102430,3.69986118,1832.6,1832.5,2.67712]
[1746240103043,3.69986967,1832.6,1832.5,2.67712]
[1746240106149,0.43276967,1832.6,1832.5,2.67712]
[1746240106349,3.64629125,1832.7,1832.6,1.09096]
[1746240106651,4.07894406,1832.7,1832.6,8.02446]
[1746240108557,4.07887735,1832.7,1832.6,8.02446]
[1746240109044,0.4325861,1832.7,1832.6,8.02446]
[1746240112062,5.29609125,1832.8,1832.7,1.0909]
[1746240112263,5.72864179,1832.8,1832.7,2.6853]
[1746240115468,4.07884179,1832.8,1832.7,2.6853]
[1746240116262,4.07884179,1832.8,1832.7,1.0909]
[1746240116468,5.82114179,1832.8,1832.7,1.0909]
[1746240116857,6.51671853,1832.8,1832.7,1.0909]
[1746240117463,6.5168505,1832.8,1832.7,1.0909]
[1746240120167,5.82127376,1832.8,1832.7,1.0909]
[1746240120969,5.82147005,1832.8,1832.7,1.0909]
[1746240122468,5.82148589,1832.8,1832.7,1.0909]
[1746240123169,9.53948589,1832.8,1832.7,1.0909]
[1746240124173,9.53952072,1832.8,1832.7,1.0909]
[1746240125173,5.82152072,1832.8,1832.7,1.0909]
[1746240125866,5.82152072,1832.8,1832.7,2.7597]
[1746240126067,5.82148955,1832.8,1832.7,3.6071]
[1746240127783,5.82152852,1832.8,1832.7,3.6071]
[1746240131387,5.82156106,1832.8,1832.7,3.6071]
[1746240131687,6.51715702,1832.8,1832.7,3.6071]
[1746240133086,6.51714342,1832.8,1832.7,3.6071]
[1746240133386,6.51715164,1832.8,1832.7,3.6071]
[1746240134389,4.77485164,1832.8,1832.7,3.6071]
[1746240135083,4.774863,1832.8,1832.7,3.6071]
[1746240136793,4.77487559,1832.8,1832.7,3.6071]
[1746240139493,6.60119234,1832.8,1832.7,3.6071]
[1746240143299,0.43298838,1832.8,1832.7,3.6071]
[1746240144100,9.549708,1832.9,1832.8,1.09084]
[1746240144299,11.68960797,1832.9,1832.8,2.78084]
[1746240145296,8.48180797,1832.9,1832.8,2.78084]
[1746240145906,8.48179501,1832.9,1832.8,2.78084]
[1746240146102,11.68959501,1832.9,1832.8,2.78084]
[1746240147706,11.68962454,1832.9,1832.8,2.78084]
[1746240148308,12.38517473,1832.9,1832.8,2.78084]
[1746240150406,12.38517473,1832.9,1832.8,6.24184]
[1746240151405,13.7505966,1832.9,1832.8,6.24184]
[1746240151602,10.97576351,1832.9,1832.8,6.24184]
[1746240151904,10.9757595,1832.9,1832.8,6.24184]
[1746240153009,10.97578135,1832.9,1832.8,6.24184]
[1746240154215,9.26878135,1832.9,1832.8,6.24184]
[1746240154395,9.26878135,1832.9,1832.8,7.09494]
[1746240154600,9.26885269,1832.9,1832.8,7.09494]
[1746240155910,1.30235609,1832.9,1832.8,7.09494]
[1746240156206,1.30228374,1832.9,1832.8,7.09494]
[1746240157311,1.30225019,1832.9,1832.8,7.09494]
[1746240158012,1.30225019,1832.9,1832.8,6.0041]
[1746240158013,0.43295195,1832.9,1832.8,6.0041]
[1746240158215,0.43295195,1832.9,1832.8,7.09494]
[1746240159114,6.60055334,1832.9,1832.8,7.09494]
[1746240159316,6.6003138,1832.9,1832.8,10.81294]
[1746240159918,6.60031724,1832.9,1832.8,10.81294]
[1746240161115,6.60031724,1832.9,1832.8,7.09494]
[1746240161312,6.60020852,1832.9,1832.8,6.24184]
[1746240161512,9.96771088,1832.9,1832.8,6.24184]
[1746240161710,9.96772801,1832.9,1832.8,6.24184]
[1746240162710,9.96772932,1832.9,1832.8,6.24184]
[1746240163712,3.80012793,1832.9,1832.8,6.24184]
[1746240165520,3.80010594,1832.9,1832.8,6.24184]
[1746240166520,7.44647445,1832.9,1832.8,6.24184]
[1746240167116,7.4464674,1832.9,1832.8,6.24184]
[1746240170624,4.0789674,1832.9,1832.8,6.24184]
[1746240170922,4.07893488,1832.9,1832.8,6.24184]
[1746240171118,3.64636851,1832.9,1832.8,6.24184]
[1746240173127,3.64636851,1832.9,1832.8,9.95984]
[1746240174130,3.64636851,1833.0,1832.9,1.09078]
[1746240174330,4.07877852,1833.0,1832.9,2.72158]
[1746240175429,3.64636851,1833.0,1832.9,3.57218]
[1746240176629,2.39997851,1833.0,1832.9,8.25130851]
[1746240176931,8.51e-06,1833.0,1832.9,8.25130851]
[1746240177433,8.51e-06,1833.0,1832.9,11.96930851]
[1746240178328,8.51e-06,1833.1,1833.0,1.09072]
[1746240178530,8.51e-06,1833.1,1833.0,3.59592]
[1746240181138,8.51e-06,1833.1,1833.0,7.31392]
[1746240182136,8.51e-06,1833.1,1833.0,3.59592]
[1746240183141,8.51e-06,1833.1,1833.0,7.31392]
[1746240185142,8.51e-06,1833.1,1833.0,3.59592]
[1746240186141,8.51e-06,1833.1,1833.0,7.31392]
[1746240190147,8.51e-06,1833.1,1833.0,3.59592]
[1746240190446,2.5123,1833.3,1833.2,1.0906]
[1746240190645,2.94432126,1833.3,1833.2,4.5486]
[1746240191643,2.5123,1833.3,1833.2,4.5486]
[1746240192249,2.5123,1833.3,1833.2,6.62935884]
[1746240192438,2.5123,1833.3,1833.2,6.1903]
[1746240196453,2.94438605,1833.3,1833.2,6.1903]
[1746240197154,2.94438222,1833.3,1833.2,6.1903]
[1746240197355,2.94438222,1833.3,1833.2,4.5486]
[1746240200155,6.66238222,1833.3,1833.2,4.5486]
[1746240200750,6.66272792,1833.3,1833.2,4.5486]
[1746240202555,6.6628041,1833.3,1833.2,4.5486]
[1746240203356,3.64023939,1833.3,1833.2,4.5486]
[1746240203555,9.73077939,1833.3,1833.2,1.0906]
[1746240203957,8.64023939,1833.3,1833.2,1.0906]
[1746240204255,13.44877939,1833.3,1833.2,1.0906]
[1746240204649,7.35823939,1833.3,1833.2,1.0906]
[1746240206255,8.01627529,1833.3,1833.2,1.0906]
[1746240206460,8.44884334,1833.3,1833.2,1.0906]
[1746240207861,13.92089454,1833.3,1833.2,1.0906]
[1746240208865,1.0906,1833.2,1833.1,4.54863]
[1746240209054,6.42046805,1833.2,1833.1,4.54863]
[1746240209347,10.13846805,1833.2,1833.1,4.54863]
[1746240210553,10.13819125,1833.2,1833.1,4.54863]
[1746240210859,10.13819125,1833.2,1833.1,1.09063]
[1746240211464,18.10457295,1833.2,1833.1,1.09063]
[1746240211658,18.10452384,1833.2,1833.1,1.09063]
[1746240213363,18.10444885,1833.2,1833.1,1.09063]
[1746240215160,16.5816817,1833.2,1833.1,1.09063]
[1746240215464,17.01374311,1833.2,1833.1,1.09063]
[1746240216866,18.10434311,1833.2,1833.1,1.09063]
[1746240217267,18.10435885,1833.2,1833.1,1.09063]
[1746240217669,17.01375885,1833.2,1833.1,1.09063]
[1746240217967,17.01374424,1833.2,1833.1,1.09063]
[1746240218265,13.29574424,1833.2,1833.1,1.09063]
[1746240218663,14.3863891,1833.2,1833.1,1.09063]
[1746240219167,17.0137891,1833.2,1833.1,1.09063]
[1746240219364,17.01379344,1833.2,1833.1,1.09063]
[1746240219565,9.74284703,1833.2,1833.1,1.09063]
[1746240219869,9.74286142,1833.2,1833.1,1.09063]
[1746240220070,9.74286168,1833.2,1833.1,1.09063]
[1746240220768,9.74288106,1833.2,1833.1,1.09063]
[1746240220970,10.83348095,1833.2,1833.1,1.09063]
[1746240221573,10.83351415,1833.2,1833.1,1.09063]
[1746240221870,10.83351426,1833.2,1833.1,1.09063]
[1746240222369,10.83351348,1833.2,1833.1,1.09063]
[1746240222668,10.8334941,1833.2,1833.1,1.09063]
[1746240222869,10.8335123,1833.2,1833.1,1.09063]
[1746240223768,16.29540828,1833.2,1833.1,1.09063]
[1746240225271,16.29553812,1833.2,1833.1,1.09063]
[1746240226973,15.86323127,1833.2,1833.1,1.09063]
[1746240227167,16.29574055,1833.2,1833.1,1.09063]
[1746240228773,16.29591726,1833.2,1833.1,1.09063]
[1746240229676,1.09066,1833.1,1833.0,2.73556]
[1746240229865,4.06234599,1833.1,1833.0,2.73556]
[1746240230071,4.88884599,1833.1,1833.0,2.73556]
[1746240230369,8.60684599,1833.1,1833.0,2.73556]
[1746240230575,8.60694303,1833.1,1833.0,2.73556]
[1746240231182,3.79832261,1833.1,1833.0,2.73556]
[1746240231374,4.88898302,1833.1,1833.0,2.73556]
[1746240231775,11.04635709,1833.1,1833.0,2.73556]
[1746240231976,9.95569709,1833.1,1833.0,2.73556]
[1746240232275,13.67367334,1833.1,1833.0,2.73556]
[1746240233078,14.76433334,1833.1,1833.0,2.73556]
[1746240234174,14.76448839,1833.1,1833.0,2.73556]
[1746240234674,14.76448839,1833.1,1833.0,1.6449]
[1746240234876,1.09078,1832.9,1832.8,1.736]
[1746240235082,1.09086,1832.8,1832.7,1.09085]
[1746240235381,3.93625712,1832.8,1832.7,1.09085]
[1746240235780,3.93643315,1832.8,1832.7,1.09085]
[1746240235981,2.84557454,1832.8,1832.5,10.57603582]
[1746240236174,1.09096,1832.6,1832.5,6.2382]
[1746240236472,0.43317454,1832.6,1832.5,6.2382]
[1746240236672,1.29817454,1832.6,1832.5,6.2382]
[1746240236975,1.29754805,1832.6,1832.5,6.2382]
[1746240237275,5.01554805,1832.6,1832.5,6.2382]
[1746240238882,5.71098334,1832.6,1832.5,6.2382]
[1746240239082,5.71098334,1832.6,1832.5,1.091]
[1746240239281,4.84598334,1832.6,1832.5,1.091]
[1746240239485,4.84598334,1832.6,1832.5,2.8036]
[1746240240781,4.84550245,1832.6,1832.5,2.8036]
[1746240241186,4.84550245,1832.6,1832.5,7.8036]
[1746240241378,4.41343529,1832.6,1832.5,7.8036]
[1746240241578,4.41343529,1832.6,1832.5,2.8036]
[1746240242383,0.69543529,1832.6,1832.5,2.8036]
[1746240242982,3.2078,1832.8,1832.7,1.0909]
[1746240243171,3.63976639,1832.8,1832.7,1.0909]
[1746240243584,3.63976639,1832.8,1832.7,2.7835]
[1746240245786,3.63972736,1832.8,1832.7,2.7835]
[1746240247586,3.63974502,1832.8,1832.7,2.7835]
[1746240248183,7.35774502,1832.8,1832.7,2.7835]
[1746240249387,7.35776188,1832.8,1832.7,2.7835]
[1746240250185,3.63976188,1832.8,1832.7,2.7835]
[1746240251583,3.63976188,1832.8,1832.7,1.9339]
[1746240251783,4.45496188,1832.8,1832.7,1.9339]
[1746240252179,4.45496188,1832.8,1832.7,3.649]
[1746240252375,4.45496188,1832.8,1832.7,2.806]
[1746240252580,6.13396188,1832.8,1832.7,2.806]
[1746240254088,9.85196188,1832.8,1832.7,2.806]
[1746240254390,16.00948817,1832.8,1832.7,2.806]
[1746240255492,17.10032817,1832.8,1832.7,1.0909]
[1746240256194,13.38232817,1832.8,1832.7,1.0909]
[1746240256492,12.29148817,1832.8,1832.7,1.0909]
[1746240256793,13.38232817,1832.8,1832.7,1.0909]
[1746240257087,17.10032817,1832.8,1832.7,1.0909]
[1746240257295,16.00948817,1832.8,1832.7,1.0909]
[1746240258293,16.00974339,1832.8,1832.7,1.0909]
[1746240260091,16.00985394,1832.8,1832.7,1.0909]
[1746240260395,17.10069394,1832.8,1832.7,1.0909]
[1746240261897,17.10087313,1832.8,1832.7,1.0909]
[1746240262097,16.01003313,1832.8,1832.7,1.0909]
[1746240262603,17.10087313,1832.8,1832.7,1.0909]
[1746240263407,1.09096,1832.7,1832.6,1.09093]
[1746240263592,3.93126684,1832.7,1832.6,1.09093]
[1746240263792,1.091,1832.6,1832.5,1.09099]
[1746240264093,7.11656344,1832.6,1832.5,1.09099]
[1746240264294,10.83457938,1832.6,1832.5,1.09099]
[1746240264495,10.83454702,1832.6,1832.5,1.09099]
[1746240265201,9.74354702,1832.6,1832.5,1.09099]
[1746240266093,10.83450702,1832.6,1832.5,1.09099]
[1746240266401,9.74354702,1832.6,1832.5,1.09099]
[1746240267197,9.74356616,1832.6,1832.5,1.09099]
[1746240267497,10.43919647,1832.6,1832.5,1.09099]
[1746240267904,11.53015647,1832.6,1832.5,1.09099]
[1746240269106,11.53012715,1832.6,1832.5,1.09099]
[1746240270101,8.05416715,1832.6,1832.5,1.09099]
[1746240270311,4.41363031,1832.6,1832.5,10.15959]
[1746240271213,0.69563031,1832.6,1832.5,10.15959]
[1746240273212,0.69563031,1832.6,1832.5,15.34891851]
[1746240275216,5.46189598,1832.7,1832.6,1.09096]
[1746240275417,5.46189598,1832.7,1832.6,7.15246]
[1746240275618,1.33275629,1832.7,1832.6,12.15246]
[1746240275915,6.29e-06,1832.7,1832.6,12.15246]
[1746240276114,6.29e-06,1832.7,1832.6,7.15246]
[1746240276617,6.29e-06,1833.2,1833.1,1.09066]
[1746240276819,0.4245576,1833.2,1833.1,1.09066]
[1746240277018,0.4245576,1833.2,1833.1,2.68536]
[1746240277221,4.1425576,1833.2,1833.1,2.68536]
[1746240277520,4.14254296,1833.2,1833.1,2.68536]
[1746240278021,4.14242023,1833.2,1833.1,2.68536]
[1746240278218,1.23582023,1833.2,1833.1,2.68536]
[1746240278422,1.23582039,1833.2,1833.1,2.68536]
[1746240278623,1.23580094,1833.2,1833.1,2.68536]
[1746240279124,0.81140629,1833.2,1833.1,2.68536]
[1746240279423,1.23580099,1833.2,1833.1,2.68536]
[1746240279611,0.42440099,1833.2,1833.1,2.68536]
[1746240280123,0.42426199,1833.2,1833.1,2.68536]
[1746240280311,6.29e-06,1833.2,1833.1,2.68536]
[1746240280515,0.42423729,1833.2,1833.1,2.68536]
[1746240280710,6.29e-06,1833.2,1833.1,2.68536]
[1746240280917,2.12083985,1833.2,1833.1,2.68536]
[1746240281216,2.12083237,1833.2,1833.1,2.68536]
[1746240281523,2.12080372,1833.2,1833.1,2.68536]
[1746240281825,2.12080383,1833.2,1833.1,2.68536]
[1746240282118,5.83870073,1833.2,1833.1,2.68536]
[1746240282421,5.8386341,1833.2,1833.1,2.68536]
[1746240282923,5.83864048,1833.2,1833.1,2.68536]
[1746240283324,6.66744048,1833.2,1833.1,2.68536]
[1746240283929,4.97084048,1833.2,1833.1,2.68536]
[1746240284225,1.25284048,1833.2,1833.1,2.68536]
[1746240284423,1.25275063,1833.2,1833.1,2.68536]
[1746240284617,2.97405063,1833.2,1833.1,2.68536]
[1746240284813,1.25275063,1833.2,1833.1,2.68536]
[1746240285018,1.25274958,1833.2,1833.1,2.68536]
[1746240285521,2.93104958,1833.2,1833.1,2.68536]
[1746240286425,2.93093831,1833.2,1833.1,2.68536]
[1746240286626,2.93093885,1833.2,1833.1,2.68536]
[1746240286822,2.93093839,1833.2,1833.1,2.68536]
[1746240287323,2.93087216,1833.2,1833.1,2.68536]
[1746240287826,2.93087322,1833.2,1833.1,2.68536]
[1746240288326,2.9308718,1833.2,1833.1,2.68536]
[1746240288929,2.93076969,1833.2,1833.1,2.68536]
[1746240289322,2.5071,1833.2,1833.1,2.68536]
[1746240289927,2.93072508,1833.2,1833.1,2.68536]
[1746240290127,2.5071,1833.2,1833.1,2.68536]
[1746240290820,2.93069168,1833.2,1833.1,2.68536]
[1746240291021,2.5071,1833.2,1833.1,2.68536]
[1746240291328,2.5071,1833.2,1833.1,1.09066]
[1746240292128,6.64868135,1833.2,1833.1,1.09066]
[1746240292327,6.64868146,1833.2,1833.1,1.09066]
[1746240292730,6.64868222,1833.2,1833.1,1.09066]
[1746240292928,6.2251,1833.2,1833.1,1.09066]
[1746240293130,1.09066,1833.1,1833.0,4.54768]
[1746240293330,2.14477051,1833.1,1833.0,4.54768]
[1746240294131,5.86277051,1833.1,1833.0,4.54768]
[1746240296725,7.73235568,1833.0,1832.9,1.09073]
[1746240297837,7.73265777,1833.0,1832.9,1.09073]
[1746240298826,1.09081,1832.9,1832.8,1.09081]
[1746240299024,7.13884777,1832.9,1832.8,1.09084]
[1746240299224,10.85684777,1832.9,1832.8,1.09084]
[1746240301135,14.49387811,1832.9,1832.8,1.09084]
[1746240302335,1.09084,1832.8,1832.7,4.54584]
[1746240302536,3.26960722,1832.8,1832.7,4.54584]
[1746240302731,3.26950258,1832.8,1832.7,4.54584]
[1746240303230,6.98750258,1832.8,1832.7,4.54584]
[1746240304234,5.89666258,1832.8,1832.4,3.456]
[1746240304438,7.17780114,1832.7,1832.6,1.09094]
[1746240305140,10.89580114,1832.7,1832.6,1.09094]
[1746240305934,1.09096,1832.6,1832.4,5.1755]